bitfinex-derivatives/quotes_BTCF0:USTF0_20240815
["timestamp","ask_amount","ask_price","bid_price","bid_amount"]
[1723684945451,0.14,59012.0,59011.0,0.6818606]
[1723684946154,0.14,59012.0,59011.0,0.68186059]
[1723684949251,0.14,59012.0,59011.0,0.76637961]
[1723684950453,0.14,59012.0,59011.0,0.89544857]
[1723684953355,0.14,59012.0,59011.0,0.89544858]
[1723684955749,0.14,59012.0,59011.0,0.53464858]
[1723684955951,0.14,59012.0,59011.0,0.89544858]
[1723684957562,0.14,59012.0,59011.0,0.81092954]
[1723684957766,0.14,59012.0,59011.0,0.81092864]
[1723684959154,0.14,59012.0,59011.0,0.81092679]
[1723684960750,0.14,59012.0,59011.0,0.8109265]
[1723684961379,0.14,59012.0,59011.0,0.8954998]
[1723684961559,0.14,59012.0,59011.0,0.40563269]
[1723684961863,0.7837826,59012.0,59011.0,0.08635406]
[1723684962066,0.733068,59012.0,59011.0,0.08635406]
[1723684962360,0.14,59012.0,59011.0,0.0863596]
[1723684962568,0.14,59012.0,59011.0,0.38873336]
[1723684962754,0.19073586,59012.0,59011.0,0.3210696]
[1723684962954,0.14,59012.0,59011.0,0.3210696]
[1723684964055,0.14,59012.0,59011.0,0.23671]
[1723684964261,0.14,59012.0,59011.0,0.32106552]
[1723684964463,0.19073586,59012.0,59011.0,0.32106516]
[1723684964761,0.14,59012.0,59011.0,0.32106516]
[1723684965161,0.19073586,59012.0,59011.0,0.17106516]
[1723684966062,0.19073586,59012.0,59011.0,0.32106516]
[1723684966258,0.14,59012.0,59011.0,0.32106516]
[1723684967553,0.19073586,59012.0,59011.0,0.17106516]
[1723684967759,0.14,59012.0,59011.0,0.08671]
[1723684968668,0.14,59012.0,59011.0,0.32106361]
[1723684968862,0.19079256,59012.0,59011.0,0.32106361]
[1723684969375,0.14,59012.0,59011.0,0.32106361]
[1723684969764,0.14,59012.0,59011.0,0.17106361]
[1723684969964,0.19079221,59012.0,59011.0,0.08671]
[1723684970162,0.14,59012.0,59011.0,0.08671]
[1723684970857,0.19079197,59012.0,59011.0,0.08671]
[1723684971064,0.14,59012.0,59011.0,0.08671]
[1723684971259,0.19079197,59012.0,59011.0,0.08671]
[1723684971562,0.14,59012.0,59011.0,0.08671]
[1723684971767,0.14,59012.0,59011.0,0.22671]
[1723684972066,1.04836,59012.0,59011.0,0.002]
[1723684972263,0.7085422,59012.0,59011.0,0.002]
[1723684972760,0.7932502,59012.0,59011.0,0.002]
[1723684973566,1.1932502,59012.0,59011.0,0.002]
[1723684973775,0.2848902,59012.0,59011.0,0.002]
[1723684973958,0.2001822,59012.0,59011.0,0.172]
[1723684974270,0.20018179,59012.0,59011.0,0.25671]
[1723684974661,0.20018179,59012.0,59011.0,0.3410674]
[1723684974662,0.16746305,59012.0,59011.0,0.3410674]
[1723684975072,0.16746305,59012.0,59011.0,0.3310674]
[1723684978973,0.16746305,59012.0,59011.0,0.42947941]
[1723684979280,0.14,59012.0,59011.0,0.24671]
[1723684979471,0.14,59012.0,59011.0,0.42947534]
[1723684979672,0.14,59012.0,59011.0,0.42947485]
[1723684979981,0.14,59012.0,59011.0,0.33106282]
[1723684980475,0.19076923,59012.0,59011.0,0.33106282]
[1723684980675,0.3032,59012.0,59011.0,0.08635282]
[1723684980880,0.3032,59012.0,59011.0,0.15442976]
[1723684981079,0.3032,59012.0,59011.0,0.34106865]
[1723684981272,0.2245,59012.0,59011.0,0.34106865]
[1723684982078,0.2245,59012.0,59011.0,0.25671]
[1723684982272,0.2245,59012.0,59011.0,0.34106408]
[1723684983166,0.2245,59012.0,59011.0,0.34106506]
[1723684983771,0.2245,59012.0,59011.0,0.34106693]
[1723684984175,0.2245,59012.0,59011.0,0.42542274]
[1723684984373,0.2245,59012.0,59011.0,0.25542274]
[1723684984573,0.2245,59012.0,59011.0,0.39542274]
[1723684985576,0.73286,59012.0,59011.0,0.17071274]
[1723684985774,0.96228792,59012.0,59011.0,0.17071274]
[1723684986781,0.45392792,59012.0,59011.0,0.17071561]
[1723684987182,0.386208,59012.0,59011.0,0.17071561]
[1723684987490,0.54851209,59012.0,59011.0,0.15364405]
[1723684987987,0.54851209,59012.0,59011.0,0.06928537]
[1723684988281,0.54851209,59012.0,59011.0,0.16770923]
[1723684989185,0.54851209,59012.0,59011.0,0.06928537]
[1723684989574,0.54757003,59012.0,59011.0,0.06928537]
[1723684989986,0.90837003,59012.0,59011.0,0.06928537]
[1723684991379,1.09458754,59012.0,59011.0,0.06928537]
[1723684992081,0.90837003,59012.0,59011.0,0.06928537]
[1723684992281,1.09460274,59012.0,59011.0,0.06928537]
[1723684992882,0.90837003,59012.0,59011.0,0.06928537]
[1723684993182,1.09460274,59012.0,59011.0,0.06928537]
[1723684993999,1.01760274,59012.0,59011.0,0.06928537]
[1723684994182,1.01760274,59012.0,59007.0,0.084715]
[1723684994380,0.05079004,59009.0,59008.0,0.08435847]
[1723684994577,0.20079004,59009.0,59008.0,0.08435847]
[1723684995886,0.20079004,59009.0,59008.0,0.16635847]
[1723684996390,0.15,59009.0,59008.0,0.25093204]
[1723684996891,0.151,59009.0,59008.0,0.33664558]
[1723684997198,0.151,59009.0,59008.0,0.2522873]
[1723684997492,0.152,59009.0,59008.0,0.167714]
[1723684997685,0.152,59009.0,59008.0,0.2522873]
[1723684997884,0.234,59009.0,59008.0,0.1702873]
[1723684999290,0.234,59009.0,59008.0,0.167714]
[1723684999291,0.152,59009.0,59008.0,0.167714]
[1723684999592,0.152,59009.0,59008.0,0.2522873]
[1723684999783,0.20279004,59009.0,59008.0,0.167714]
[1723685000179,0.152,59009.0,59008.0,0.2522873]
[1723685001292,0.20279004,59009.0,59008.0,0.167714]
[1723685001985,0.152,59009.0,59008.0,0.38136829]
[1723685002183,0.152,59009.0,59008.0,0.29936829]
[1723685002493,0.084724,59001.0,58997.0,0.445528]
[1723685002697,0.31218235,59001.0,58997.0,0.3608]
[1723685002891,0.23018235,59001.0,59000.0,0.08217542]
[1723685003197,0.31218235,59001.0,59000.0,0.00017542]
[1723685003798,0.31218235,59001.0,59000.0,0.00417542]
[1723685004000,0.31218235,59001.0,59000.0,0.00617542]
[1723685005879,0.31974216,59001.0,59000.0,0.00617542]
[1723685006486,0.31974216,59001.0,59000.0,0.09090042]
[1723685006687,0.28702293,59001.0,59000.0,0.09090042]
[1723685007991,0.31974745,59001.0,59000.0,0.09090042]
[1723685009289,0.25955981,59001.0,59000.0,0.09090042]
[1723685009580,0.3102682,59001.0,59000.0,0.09090042]
[1723685010196,0.3102682,59001.0,59000.0,0.00617542]
[1723685010498,0.25955981,59001.0,59000.0,0.00617542]
[1723685010887,0.31026494,59001.0,59000.0,0.00617542]
[1723685011496,0.25955981,59001.0,59000.0,0.00617542]
[1723685015704,0.31026494,59001.0,59000.0,0.00617542]
[1723685016297,0.39016494,59001.0,59000.0,0.00617542]
[1723685016990,0.084728,58998.0,58997.0,0.06774219]
[1723685017195,0.6028,58998.0,58995.0,0.00025418]
[1723685017392,0.50852,58997.0,58995.0,0.05074453]
[1723685017691,0.73613121,58997.0,58992.0,0.05074453]
[1723685017897,0.527535,58993.0,58990.0,0.05074453]
[1723685018196,0.082,58991.0,58990.0,0.05074453]
[1723685018499,0.252,58991.0,58989.0,0.05074453]
[1723685018798,0.082,58990.0,58989.0,0.05074453]
[1723685019007,0.252,58990.0,58989.0,0.05074453]
[1723685019507,0.252,58990.0,58988.0,0.05074453]
[1723685019700,0.082,58989.0,58988.0,0.05074453]
[1723685019903,0.232,58989.0,58988.0,0.05074453]
[1723685020394,0.5928,58989.0,58988.0,0.05074453]
[1723685020595,0.5928,58989.0,58987.0,0.05074453]
[1723685020796,0.677541,58989.0,58986.0,0.05099871]
[1723685020995,0.758741,58989.0,58986.0,0.05099871]
[1723685021197,0.759741,58989.0,58988.0,0.014]
[1723685021395,0.676,58989.0,58988.0,0.028]
[1723685021902,0.760741,58989.0,58988.0,0.014]
[1723685022100,0.084743,58988.0,58986.0,0.00025418]
[1723685022301,0.084748,58984.0,58983.0,0.05074453]
[1723685022502,0.234748,58984.0,58980.0,0.05074453]
[1723685022701,0.082,58981.0,58980.0,0.05074453]
[1723685023001,0.242,58981.0,58980.0,0.05074453]
[1723685023198,0.242,58981.0,58979.0,0.41154453]
[1723685023805,0.242,58981.0,58980.0,0.014]
[1723685024202,0.243,58981.0,58980.0,0.025]
[1723685024801,0.243,58981.0,58980.0,0.014]
[1723685025504,0.243,58981.0,58980.0,0.023]
[1723685025900,0.243,58981.0,58980.0,0.02287081]
[1723685026214,0.243,58981.0,58975.0,0.08501518]
[1723685026215,0.084757,58979.0,58975.0,0.00025418]
[1723685026412,0.082,58976.0,58975.0,0.00025418]
[1723685026602,0.232,58976.0,58975.0,0.00025418]
[1723685026800,0.084766,58972.0,58968.0,0.05074453]
[1723685027012,0.082,58969.0,58965.0,0.00011986]
[1723685027199,0.232,58969.0,58965.0,0.00011986]
[1723685028406,0.5928,58969.0,58965.0,0.00011986]
[1723685028601,0.082,58966.0,58965.0,0.00011986]
[1723685028803,0.232,58966.0,58965.0,0.00011986]
[1723685029411,0.31694942,58966.0,58965.0,0.00011986]
[1723685029705,0.31694942,58966.0,58962.0,0.00025418]
[1723685029902,0.3608,58963.0,58962.0,0.00025418]
[1723685030111,0.5208,58963.0,58962.0,0.00025418]
[1723685030909,0.5208,58963.0,58962.0,0.00225418]
[1723685031413,0.5218,58963.0,58962.0,0.00225418]
[1723685031613,0.5228,58963.0,58962.0,0.00025418]
[1723685032701,1.516378,58963.0,58943.0,0.05074453]
[1723685032915,0.3608,58950.0,58947.0,0.084801]
[1723685033213,0.00014846,58949.0,58947.0,0.234801]
[1723685033419,0.17014846,58949.0,58947.0,0.234801]
[1723685034110,0.17014846,58949.0,58947.0,0.236801]
[1723685034707,0.17114846,58949.0,58948.0,0.0848]
[1723685034908,0.00025441,58954.0,58953.0,0.084793]
[1723685035111,0.16025441,58954.0,58953.0,0.084793]
[1723685035311,0.16770121,58954.0,58953.0,0.224793]
[1723685035907,0.00037339,58954.0,58953.0,0.224793]
[1723685036106,0.00744885,58958.0,58957.0,0.084786]
[1723685036313,0.17,58958.0,58955.0,0.3608]
[1723685036708,0.17,58958.0,58955.0,0.5208]
[1723685037105,0.17,58958.0,58957.0,0.084787]
[1723685037310,0.172,58958.0,58957.0,0.246787]
[1723685037907,0.171,58958.0,58957.0,0.244787]
[1723685038218,0.172,58958.0,58957.0,0.244787]
[1723685039609,0.171,58958.0,58957.0,0.244787]
[1723685039814,0.171,58958.0,58957.0,0.246787]
[1723685040115,0.172,58958.0,58957.0,0.246787]
[1723685043616,0.617586,58958.0,58957.0,0.002]
[1723685044016,0.084794,58952.0,58951.0,0.00025441]
[1723685044210,0.736,58952.0,58938.0,0.3608]
[1723685044406,0.566,58939.0,58935.0,0.00019948]
[1723685044612,0.736,58939.0,58935.0,0.00019948]
[1723685044819,0.1601,58938.0,58935.0,0.00019948]
[1723685045120,0.08482,58935.0,58926.0,0.084831]
[1723685045323,0.290029,58928.0,58921.0,0.05074453]
[1723685045529,0.2052,58924.0,58921.0,0.08]
[1723685045827,0.17,58924.0,58919.0,0.3608]
[1723685046117,0.17,58924.0,58923.0,0.084836]
[1723685046522,0.17011966,58924.0,58923.0,0.084836]
[1723685047522,0.17111966,58924.0,58923.0,0.084836]
[1723685048019,0.17211966,58924.0,58923.0,0.084836]
[1723685048212,0.00025441,58927.0,58923.0,0.50912]
[1723685048411,0.32396,58941.0,58933.0,0.084821]
[1723685048715,0.17789069,58941.0,58932.0,0.3608]
[1723685048917,0.25539069,58941.0,58932.0,0.3608]
[1723685049114,0.25539069,58941.0,58932.0,0.5108]
[1723685049325,0.00010766,58940.0,58932.0,0.5108]
[1723685049514,0.17010766,58940.0,58937.0,0.084816]
[1723685050716,0.17310766,58940.0,58937.0,0.084816]
[1723685052317,0.17310766,58940.0,58937.0,0.3608]
[1723685053120,0.17310766,58940.0,58939.0,0.084813]
[1723685053320,0.17410766,58940.0,58939.0,0.084813]
[1723685054223,0.17310766,58940.0,58939.0,0.084813]
[1723685054419,0.17610766,58940.0,58939.0,0.084813]
[1723685054611,0.17610766,58940.0,58931.0,0.00025441]
[1723685054612,0.17610766,58940.0,58934.0,0.084819]
[1723685054812,0.17610766,58940.0,58931.0,0.00025441]
[1723685054813,0.2052,58938.0,58931.0,0.00025441]
[1723685055020,0.2052,58932.0,58931.0,0.17025441]
[1723685055227,0.3552,58932.0,58931.0,0.17025441]
[1723685055926,0.3552,58932.0,58931.0,0.00025441]
[1723685057015,0.3552,58932.0,58931.0,0.00225441]
[1723685057419,0.3562,58932.0,58931.0,0.00025441]
[1723685057620,0.3572,58932.0,58931.0,0.00225441]
[1723685061920,0.084826,58930.0,58925.0,0.3608]
[1723685062121,0.254826,58930.0,58925.0,0.3608]
[1723685062919,0.17,58930.0,58925.0,0.3608]
[1723685063228,0.171,58930.0,58925.0,0.41154453]
[1723685063422,0.171,58930.0,58927.0,0.08483]
[1723685063624,0.172,58930.0,58927.0,0.25483]
[1723685063827,0.172,58930.0,58927.0,0.30557453]
[1723685064125,0.23,58936.0,58935.0,0.084819]
[1723685064422,0.26025441,58942.0,58939.0,0.084813]
[1723685064624,0.14010766,58940.0,58939.0,0.084813]
[1723685064832,0.14769824,58940.0,58939.0,0.084813]
[1723685065224,0.14769824,58940.0,58939.0,0.244813]
[1723685067327,0.14769824,58940.0,58939.0,0.084813]
[1723685067631,0.15069824,58940.0,58939.0,0.084813]
[1723685067832,0.15569824,58940.0,58939.0,0.084813]
[1723685068926,0.15569824,58940.0,58939.0,0.13539189]
[1723685069132,0.15569824,58940.0,58939.0,0.084813]
[1723685071429,0.15569824,58940.0,58939.0,0.13548883]
[1723685071628,0.15569824,58940.0,58939.0,0.084813]
[1723685072042,0.15569824,58940.0,58939.0,0.15247169]
[1723685072328,0.14810766,58940.0,58939.0,1.143813]
[1723685072525,0.23,58946.0,58941.0,0.08481]
[1723685072526,0.02,58946.0,58941.0,0.08481]
[1723685072728,0.14,58946.0,58945.0,0.3608]
[1723685073033,0.14,58946.0,58945.0,0.5108]
[1723685073739,0.145,58946.0,58945.0,0.595604]
[1723685074037,0.157,58946.0,58945.0,0.595604]
[1723685074442,0.152,58946.0,58945.0,0.595604]
[1723685074631,0.162,58946.0,58945.0,0.595604]
[1723685075635,0.162,58946.0,58945.0,0.084804]
[1723685078233,0.162,58946.0,58945.0,0.15244734]
[1723685078426,0.162,58946.0,58945.0,0.30244734]
[1723685078630,0.162,58946.0,58945.0,0.234804]
[1723685079731,0.162,58946.0,58945.0,0.317804]
[1723685079935,0.162,58946.0,58945.0,0.30242854]
[1723685088038,0.162,58946.0,58945.0,0.234804]
[1723685089337,0.162,58946.0,58945.0,0.30241061]
[1723685089643,0.162,58946.0,58945.0,0.30242511]
[1723685090540,0.162,58946.0,58945.0,0.234804]
[1723685091639,0.1697323,58946.0,58945.0,0.234804]
[1723685094446,0.8838923,58946.0,58944.0,0.8061733]
[1723685094655,0.94456,58945.0,58932.0,0.10126735]
[1723685094843,0.94456,58945.0,58925.0,0.3608]
[1723685094844,0.2052,58935.0,58933.0,0.21391942]
[1723685095043,0.08482,58934.0,58932.0,0.06775145]
[1723685095339,0.08482,58934.0,58933.0,0.05081614]
[1723685095340,0.25482,58934.0,58933.0,0.05081614]
[1723685095544,0.084826,58931.0,58929.0,0.05081614]
[1723685095743,0.21027489,58930.0,58929.0,0.05081614]
[1723685095954,0.35027489,58930.0,58928.0,0.05081614]
[1723685096542,0.299626,58930.0,58927.0,0.05081614]
[1723685097048,0.300626,58930.0,58928.0,0.005]
[1723685097248,0.2052,58929.0,58928.0,0.005]
[1723685097440,0.450027,58929.0,58928.0,0.005]
[1723685097641,0.08483,58927.0,58926.0,0.23114077]
[1723685097849,0.25483,58927.0,58926.0,0.23114077]
[1723685098052,1.16395,58927.0,58926.0,0.23114077]
[1723685099447,1.16495,58927.0,58926.0,0.23114077]
[1723685099952,0.25583,58927.0,58926.0,0.23114077]
[1723685100139,0.30737935,58927.0,58926.0,0.001]
[1723685100342,0.172,58927.0,58926.0,0.001]
[1723685101445,0.084833,58925.0,58924.0,0.00017024]
[1723685101654,0.084833,58925.0,58916.0,0.3608]
[1723685101655,0.17,58925.0,58916.0,0.3608]
[1723685101846,0.2052,58920.0,58916.0,0.3608]
[1723685102052,0.3552,58920.0,58916.0,0.3608]
[1723685102251,0.15,58920.0,58916.0,0.3608]
[1723685102454,0.15,58920.0,58917.0,0.084844]
[1723685102656,0.15,58920.0,58916.0,0.3608]
[1723685102843,0.0762,58919.0,58916.0,0.3608]
[1723685103048,0.2262,58919.0,58916.0,0.3608]
[1723685104153,0.084843,58918.0,58916.0,0.3608]
[1723685104356,0.254843,58918.0,58916.0,0.3608]
[1723685104556,0.0764,58917.0,58916.0,0.3608]
[1723685104747,0.2164,58917.0,58916.0,0.3608]
[1723685105144,0.2164,58917.0,58916.0,0.5108]
[1723685106344,0.2174,58917.0,58916.0,0.5108]
[1723685106858,0.2184,58917.0,58916.0,0.5108]
[1723685107458,0.142,58917.0,58916.0,0.5108]
[1723685107753,0.142,58917.0,58916.0,0.595646]
[1723685112759,0.2865,58928.0,58916.0,0.595646]
[1723685112760,0.00811526,58927.0,58923.0,0.084836]
[1723685112960,0.14025441,58924.0,58923.0,0.605636]
[1723685113264,0.14025441,58924.0,58923.0,1.114756]
[1723685114061,0.14225441,58924.0,58923.0,1.115756]
[1723685116762,0.00804048,58931.0,58923.0,1.5237869]
[1723685116967,0.08,58931.0,58930.0,0.084826]
[1723685117168,0.08,58931.0,58930.0,0.335826]
[1723685118069,0.081,58931.0,58930.0,0.336826]
[1723685118755,0.08,58931.0,58930.0,0.338826]
[1723685119466,0.08,58931.0,58930.0,1.332732]
[1723685119467,0.07002389,58931.0,58930.0,1.332732]
[1723685119669,0.00025441,58936.0,58935.0,0.169638]
[1723685119971,0.15025441,58936.0,58935.0,0.585619]
[1723685121064,0.15225441,58936.0,58935.0,0.585619]
[1723685121373,0.15725441,58936.0,58935.0,0.585619]
[1723685121671,0.15725441,58936.0,58935.0,0.6362287]
[1723685122065,0.15525441,58936.0,58935.0,0.6382287]
[1723685122268,0.15025441,58936.0,58935.0,0.6382287]
[1723685122470,0.15025441,58936.0,58935.0,0.587619]
[1723685122670,0.15025441,58936.0,58935.0,0.63826142]
[1723685123267,0.15025441,58936.0,58935.0,0.587619]
[1723685125874,0.15025441,58936.0,58935.0,1.096659]
[1723685126773,0.15025441,58936.0,58935.0,1.581478]
[1723685127074,0.09934847,58936.0,58935.0,1.581478]
[1723685127277,0.09934847,58936.0,58935.0,1.096659]
[1723685131177,0.09934847,58936.0,58935.0,0.587619]
[1723685138385,1.00838847,58936.0,58932.0,0.08441255]
[1723685138586,0.2052,58933.0,58932.0,0.05068996]
[1723685138775,0.3752,58933.0,58929.0,0.41148996]
[1723685139290,0.3752,58933.0,58930.0,0.05068996]
[1723685139990,0.3752,58933.0,58932.0,0.001]
[1723685140686,0.3752,58933.0,58931.0,0.05068996]
[1723685141281,0.3752,58933.0,58932.0,0.05068996]
[1723685141471,0.17,58933.0,58932.0,0.22168996]
[1723685141678,0.17,58933.0,58932.0,0.255823]
[1723685141876,0.171,58933.0,58932.0,0.255823]
[1723685142473,0.17903221,58933.0,58932.0,0.255823]
[1723685142879,0.17903221,58933.0,58932.0,0.254823]
[1723685143789,0.17903221,58933.0,58932.0,0.255823]
[1723685159885,0.169,58933.0,58932.0,0.34023555]
[1723685160081,0.169,58933.0,58932.0,1.29409978]
[1723685160393,0.169,58933.0,58932.0,1.54318886]
[1723685160694,0.169,58933.0,58932.0,1.29409978]
[1723685161482,0.169,58933.0,58932.0,1.30203255]
[1723685162698,0.169,58933.0,58932.0,1.55112407]
[1723685164394,0.169,58933.0,58932.0,1.44981951]
[1723685164698,0.169,58933.0,58932.0,1.5514136]
[1723685165402,0.169,58933.0,58932.0,1.1514136]
[1723685165695,0.169,58933.0,58932.0,1.04981951]
[1723685166495,0.169,58933.0,58932.0,1.15140901]
[1723685166695,0.169,58933.0,58932.0,1.04981789]
[1723685168394,0.169,58933.0,58932.0,0.64237033]
[1723685168603,0.169,58933.0,58932.0,1.04981789]
[1723685169087,0.169,58933.0,58932.0,1.15141191]
[1723685169491,0.169,58933.0,58932.0,0.64237238]
[1723685170190,0.169,58933.0,58932.0,1.15141238]
[1723685170506,0.169,58933.0,58932.0,0.38505028]
[1723685170796,0.614622,58933.0,58932.0,0.001]
[1723685171000,0.66515639,58933.0,58932.0,0.001]
[1723685171297,0.67300383,58933.0,58932.0,0.001]
[1723685171504,0.084824,58931.0,58929.0,0.04109158]
[1723685171797,0.084836,58923.0,58919.0,0.06773419]
[1723685172005,0.2052,58920.0,58918.0,0.06773419]
[1723685172198,0.3652,58920.0,58918.0,0.06773419]
[1723685172398,0.084842,58919.0,58916.0,0.42853419]
[1723685172602,0.244842,58919.0,58916.0,0.42853419]
[1723685173301,0.244842,58919.0,58916.0,0.3608]
[1723685173691,0.245842,58919.0,58916.0,0.3618]
[1723685174698,0.245842,58919.0,58916.0,0.001]
[1723685175301,0.246842,58919.0,58916.0,0.003]
[1723685175903,0.17011574,58919.0,58916.0,0.003]
[1723685176100,0.5092,58918.0,58913.0,0.3608]
[1723685176295,0.2052,58914.0,58913.0,0.3608]
[1723685176491,0.3652,58914.0,58913.0,0.3608]
[1723685177199,0.450049,58914.0,58913.0,0.3608]
[1723685177398,1.359289,58914.0,58913.0,0.34422197]
[1723685177603,1.359289,58914.0,58912.0,0.00025441]
[1723685177604,0.08485,58913.0,58912.0,0.00025441]
[1723685177902,0.75409,58913.0,58912.0,0.00025441]
[1723685178203,0.084855,58910.0,58900.0,0.445668]
[1723685178404,0.4337,58909.0,58900.0,0.445668]
[1723685178602,0.6037,58909.0,58900.0,0.3608]
[1723685180006,0.084858,58908.0,58900.0,0.3608]
[1723685180205,0.14,58908.0,58900.0,0.3608]
[1723685180403,0.290064,58904.0,58900.0,0.3608]
[1723685180709,0.460064,58904.0,58900.0,0.3608]
[1723685181110,0.3752,58904.0,58900.0,0.3608]
[1723685181902,0.3752,58904.0,58900.0,0.5008]
[1723685182405,0.3762,58904.0,58900.0,0.5008]
[1723685182698,0.3772,58904.0,58900.0,0.5008]
[1723685185996,0.3772,58904.0,58900.0,0.585669]
[1723685186202,0.172,58904.0,58903.0,0.084865]
[1723685186509,0.172,58904.0,58903.0,0.244865]
[1723685186903,0.00828314,58909.0,58903.0,0.605665]
[1723685187108,0.16,58909.0,58908.0,0.3608]
[1723685187410,0.16,58909.0,58908.0,0.605658]
[1723685189211,0.162,58909.0,58908.0,0.605658]
[1723685189803,0.162,58909.0,58908.0,0.606658]
[1723685190407,0.161,58909.0,58908.0,0.605658]
[1723685190607,0.162,58909.0,58908.0,0.607658]
[1723685191201,0.161,58909.0,58908.0,0.607658]
[1723685191396,0.162,58909.0,58908.0,0.608658]
[1723685196411,0.162,58909.0,58908.0,0.67639219]
[1723685197309,0.162,58909.0,58908.0,0.608658]
[1723685198014,0.162,58909.0,58908.0,0.969458]
[1723685198504,0.10258041,58909.0,58908.0,1.03702455]
[1723685198698,0.10258041,58909.0,58908.0,0.969458]
[1723685199312,0.10258041,58909.0,58908.0,1.03702455]
[1723685200214,0.10258041,58909.0,58908.0,0.5238]
[1723685200407,1.29716041,58909.0,58908.0,0.43136655]
[1723685200606,1.16746041,58909.0,58908.0,0.3638]
[1723685200806,0.18268041,58909.0,58908.0,0.3638]
[1723685201204,0.70020953,58909.0,58908.0,0.3638]
[1723685201917,1.10020953,58909.0,58908.0,0.3638]
[1723685203321,0.19092953,58909.0,58908.0,0.3638]
[1723685203507,0.70020953,58909.0,58908.0,0.3638]
[1723685205607,0.19092953,58909.0,58908.0,0.43136655]
[1723685205813,0.19092953,58909.0,58908.0,0.3638]
[1723685209219,0.19092953,58909.0,58908.0,0.448658]
[1723685209524,0.19092953,58909.0,58908.0,0.618658]
[1723685210114,0.19092953,58909.0,58908.0,0.68622455]
[1723685211015,0.19092953,58909.0,58908.0,0.618658]
[1723685211219,0.11082953,58909.0,58908.0,0.618658]
[1723685214728,0.11082953,58909.0,58908.0,0.3638]
[1723685214929,0.11082953,58909.0,58908.0,0.43157147]
[1723685214930,0.18642953,58909.0,58908.0,0.43157147]
[1723685217930,0.18642953,58909.0,58908.0,0.07077147]
[1723685219834,0.27128553,58909.0,58908.0,0.07077147]
[1723685220633,0.78056553,58909.0,58908.0,0.07077147]
[1723685220938,0.78056553,58909.0,58904.0,0.3608]
[1723685220939,0.084858,58908.0,58907.0,0.06777147]
[1723685221143,0.084862,58906.0,58904.0,0.3894187]
[1723685221337,0.084862,58905.0,58904.0,0.3894187]
[1723685221541,0.744142,58905.0,58904.0,0.3608]
[1723685221730,0.20065996,58905.0,58904.0,0.670526]
[1723685221936,0.20065996,58905.0,58904.0,0.67032811]
[1723685221937,0.15,58905.0,58904.0,0.67032811]
[1723685222233,0.15,58905.0,58904.0,0.71496315]
[1723685222537,0.15,58905.0,58904.0,0.585663]
[1723685223436,0.15,58905.0,58904.0,0.5008]
[1723685223838,0.151,58905.0,58904.0,0.5008]
[1723685224334,0.151,58905.0,58904.0,0.585663]
[1723685224537,0.152,58905.0,58904.0,0.585663]
[1723685224942,0.152,58905.0,58904.0,0.67038788]
[1723685225335,0.152,58905.0,58904.0,0.71496272]
[1723685225741,0.152,58905.0,58904.0,0.8165493]
[1723685225949,0.152,58905.0,58904.0,0.8904493]
[1723685226150,0.152,58905.0,58904.0,0.89044479]
[1723685226340,0.152,58905.0,58904.0,0.78885821]
[1723685226541,0.152,58905.0,58904.0,0.89057313]
[1723685227136,0.152,58905.0,58904.0,0.89057498]
[1723685227341,0.152,58905.0,58904.0,0.78886006]
[1723685227841,0.152,58905.0,58904.0,0.93746104]
[1723685228040,0.152,58905.0,58904.0,0.78885663]
[1723685228241,0.152,58905.0,58904.0,0.93730372]
[1723685229239,0.152,58905.0,58904.0,0.93735884]
[1723685230047,0.14774559,58905.0,58904.0,0.93735884]
[1723685230748,0.14774559,58905.0,58904.0,1.08522673]
[1723685230749,0.08832107,58905.0,58904.0,1.08522673]
[1723685232847,0.08832107,58905.0,58904.0,1.08521969]
[1723685233245,0.08832107,58905.0,58904.0,1.08521797]
[1723685233443,0.08832107,58905.0,58904.0,0.9367158]
[1723685233648,0.08832107,58905.0,58904.0,0.89060487]
[1723685234155,0.08832107,58905.0,58904.0,1.03847661]
[1723685234353,0.08832107,58905.0,58904.0,0.78885478]
[1723685234559,0.08832107,58905.0,58904.0,0.71495478]
[1723685235257,0.08832107,58905.0,58904.0,0.585663]
[1723685235555,0.08832107,58905.0,58904.0,0.71496345]
[1723685236451,0.08832107,58905.0,58904.0,0.71496337]
[1723685238240,0.08832107,58905.0,58904.0,0.63010037]
[1723685238441,0.29352107,58905.0,58904.0,0.71489392]
[1723685238644,0.084863,58904.0,58902.0,0.05391009]
[1723685238947,0.084863,58904.0,58890.0,0.18662768]
[1723685238948,0.084873,58898.0,58890.0,0.18662768]
[1723685239151,0.49637257,58897.0,58896.0,0.10013191]
[1723685239357,0.674673,58897.0,58896.0,0.10013191]
[1723685239850,0.5898,58897.0,58896.0,0.10013191]
[1723685240050,0.5108,58897.0,58896.0,0.10013191]
[1723685240254,0.5108,58897.0,58896.0,0.18500691]
[1723685241357,0.5118,58897.0,58896.0,0.18500691]
[1723685241559,0.5128,58897.0,58896.0,0.18500691]
[1723685242452,0.152,58897.0,58896.0,0.18500691]
[1723685243058,0.16025771,58897.0,58896.0,0.18500691]
[1723685244055,0.16025771,58897.0,58896.0,0.10013191]
[1723685246449,0.16025771,58897.0,58886.0,0.0801]
[1723685246755,0.3608,58890.0,58886.0,0.05]
[1723685246951,0.0834,58889.0,58886.0,0.05]
[1723685247150,0.3608,58887.0,58875.0,0.17774468]
[1723685247356,0.3608,58879.0,58875.0,0.07]
[1723685247548,0.00013191,58878.0,58875.0,0.07]
[1723685247755,0.16013191,58878.0,58875.0,0.07]
[1723685248656,0.16013191,58878.0,58870.0,0.0824]
[1723685248853,0.0813,58877.0,58870.0,0.2224]
[1723685249048,0.3241,58877.0,58870.0,0.2224]
[1723685249959,0.3241,58877.0,58870.0,0.14]
[1723685250156,0.409003,58877.0,58870.0,0.14]
[1723685250749,0.084904,58876.0,58870.0,0.14]